fUST/lending_fUST_20250516
["ID","MTS","AMOUNT","RATE_DAILY","PERIOD"]
[361247290,1747391434296,-500.0,0.00013699,2]
[361247291,1747391434306,-500.0,0.00013699,2]
[361247292,1747391434315,-500.0,0.00013699,2]
[361247293,1747391434325,-500.0,0.00013699,2]
[361247294,1747391434334,-446.84082157,0.00013699,2]
[361247295,1747391434343,-500.0,0.00013699,2]
[361247296,1747391434353,-500.0,0.00013699,2]
[361247297,1747391434363,-500.0,0.00013699,2]
[361247298,1747391434372,-500.0,0.00013699,2]
[361247299,1747391434383,-500.0,0.00013699,2]
[361247300,1747391434393,-500.0,0.00013699,2]
[361247301,1747391434402,-500.0,0.00013699,2]
[361247302,1747391434412,-500.0,0.00013699,2]
[361247303,1747391434422,-500.0,0.00013699,2]
[361247304,1747391434431,-500.0,0.00013699,2]
[361247305,1747391434440,-500.0,0.00013699,2]
[361247306,1747391434454,-500.0,0.00013699,2]
[361247307,1747391434463,-202.38269144,0.00013699,2]
[361247308,1747391434473,-500.0,0.00013699,2]
[361247309,1747391434483,-350.0,0.00013699,2]
[361247310,1747391434492,-500.0,0.00013699,2]
[361247311,1747391434503,-500.0,0.00013699,2]
[361247312,1747391434512,-500.0,0.00013699,2]
[361247313,1747391434523,-500.0,0.00013699,2]
[361247314,1747391434533,-160.0,0.0001373,2]
[361247315,1747391434543,-160.0,0.0001373,2]
[361247316,1747391434552,-160.0,0.0001373,2]
[361247317,1747391434562,-998.24360331,0.0001373,2]
[361247318,1747391434571,-160.0,0.0001373,2]
[361247319,1747391434581,-160.0,0.0001373,2]
[361247320,1747391434591,-160.0,0.0001373,2]
[361247321,1747391434601,-422.39640784,0.0001373,2]
[361247322,1747391434611,-160.0,0.0001373,2]
[361247323,1747391434621,-12631.88158148,0.0001373,2]
[361247324,1747391434630,-160.0,0.0001373,2]
[361247325,1747391434640,-160.0,0.0001373,2]
[361247326,1747391434649,-160.0,0.0001373,2]
[361247327,1747391434658,-212.26722696,0.0001373,2]
[361247328,1747391434667,-2000.0,0.000138,2]
[361247329,1747391434677,-450.0,0.00013835,2]
[361247330,1747391434687,-350.0,0.00013835,2]
[361247331,1747391434696,-450.0,0.00013835,2]
[361247332,1747391434706,-350.0,0.00013835,2]
[361247333,1747391434715,-554.856682,0.00013835,2]
[361247334,1747391434725,-450.0,0.00013835,2]
[361247335,1747391434735,-450.0,0.00013835,2]
[361247336,1747391434745,-450.0,0.00013835,2]
[361247337,1747391434754,-93.50463606,0.00013835,2]
[361247386,1747391443312,-1025.57717427,0.00013561,14]
[361247405,1747392213344,255.56209,0.00027397,120]
[361247408,1747392380935,5000.0,0.00011,14]
[361247409,1747392397153,5000.0,0.00011,14]
[361247410,1747392412437,300.0,0.00010995,2]
[361247411,1747392413463,-241.13083432,0.00010995,2]
[361247412,1747392417960,-223.10683334,0.00010995,2]
[361247413,1747392420448,-151.70063652,0.00010995,2]
[361247414,1747392424353,-305.42821687,0.00010995,2]
[361247415,1747392425863,-238.10347877,0.00010995,2]
[361247416,1747392430265,-160.25887754,0.00010995,2]
[361247417,1747392432955,-175.77105193,0.00010995,2]
[361247418,1747392434369,-169.91242968,0.00010995,2]
[361247419,1747392435721,-236.4578936,0.00010995,2]
[361247420,1747392438922,-273.32914496,0.00010995,2]
[361247421,1747392441157,-265.72981301,0.00010995,2]
[361247422,1747392443726,-389.10798108,0.00010995,2]
[361247423,1747392445455,-248.55865123,0.00010995,2]
[361247424,1747392447691,-271.01813992,0.00010995,2]
[361247425,1747392451567,-228.98186008,0.00010995,2]
[361247426,1747392454834,-279.79451778,0.00010995,2]
[361247427,1747392456401,-220.20548222,0.00010995,2]
[361247428,1747392458653,-621.40415715,0.00010995,2]
[361247429,1747392459067,-180.62418459,0.00010995,2]
[361247430,1747392459091,-43.96687423,0.00010995,2]
[361247431,1747392462363,-165.02160516,0.00010995,2]
[361247490,1747392632446,-259.9289717,0.00012308,2]
[361247492,1747392632457,-5000.0,0.00012323,2]
[361247495,1747392632466,-300.0,0.00012554,2]
[361247497,1747392632476,-300.0,0.00012554,2]
[361247499,1747392632486,-300.0,0.00012554,2]
[361247501,1747392632496,-300.0,0.00012554,2]
[361247503,1747392632505,-24281.79680768,0.00012555,2]
[361247532,1747392632759,-618.20319232,0.00012555,2]
[361247534,1747392632769,-422.55572243,0.00012716,2]
[361248074,1747392638236,-556.42606317,0.00012716,2]
[361248076,1747392638246,-250.0,0.00012941,2]
[361248078,1747392638256,-160.797432,0.00013558,2]
[361248080,1747392638266,-409.7161731,0.00013597,2]
[361248082,1747392638275,-297.66487984,0.0001369,2]
[361248084,1747392638285,-636.76946128,0.0001369,2]
[361248086,1747392638298,-481.47933367,0.0001369,2]
[361248088,1747392638308,-500.0,0.00013695,2]
[361248090,1747392638317,-500.0,0.00013695,2]
[361248092,1747392638327,-500.0,0.00013695,2]
[361248094,1747392638336,-500.0,0.00013695,2]
[361248096,1747392638346,-500.0,0.00013695,2]
[361248098,1747392638355,-500.0,0.00013695,2]
[361248100,1747392638365,-500.0,0.00013695,2]
[361248102,1747392638374,-500.0,0.00013695,2]
[361248104,1747392638383,-535.53872429,0.00013695,2]
[361248106,1747392638393,-500.0,0.00013695,2]
[361248108,1747392638402,-500.0,0.00013695,2]
[361248110,1747392638412,-500.0,0.00013695,2]
[361248112,1747392638422,-272.30305978,0.00013695,2]
[361248114,1747392638431,-500.0,0.00013695,2]
[361248116,1747392638440,-500.0,0.00013695,2]
[361248118,1747392638450,-500.0,0.00013695,2]
[361248120,1747392638459,-367.11064047,0.00013695,2]
[361248122,1747392638468,-500.0,0.00013695,2]
[361248124,1747392638477,-500.0,0.00013695,2]
[361248126,1747392638486,-450.0,0.00013698,2]
[361248128,1747392638495,-541.22437452,0.00013698,2]
[361248130,1747392638505,-450.0,0.00013698,2]
[361248132,1747392638514,-449.84816113,0.00013698,2]
[361248134,1747392638523,-358.137297,0.00013698,2]
[361248136,1747392638532,-450.0,0.00013698,2]
[361248138,1747392638542,-450.0,0.00013698,2]
[361248140,1747392638553,-450.0,0.00013698,2]
[361248142,1747392638562,-450.0,0.00013698,2]
[361248144,1747392638572,-502.69,0.00013698,2]
[361248146,1747392638581,-450.0,0.00013698,2]
[361248148,1747392638591,-350.0,0.00013698,2]
[361248150,1747392638601,-273.55,0.00013698,2]
[361248152,1747392638610,-450.0,0.00013698,2]
[361248154,1747392638619,-529.66,0.00013698,2]
[361248156,1747392638629,-450.0,0.00013698,2]
[361248158,1747392638638,-450.0,0.00013698,2]
[361248160,1747392638647,-450.0,0.00013698,2]
[361248163,1747392638656,-450.0,0.00013698,2]
[361248164,1747392638666,-356.47053305,0.00013698,2]
[361248166,1747392638675,-249.83177003,0.00013698,2]
[361248168,1747392638688,-450.0,0.00013698,2]
[361248171,1747392638699,-450.0,0.00013698,2]
[361248173,1747392638708,-450.0,0.00013698,2]
[361248175,1747392638718,-538.09,0.00013698,2]
[361248177,1747392638728,-787.23,0.00013698,2]
[361248179,1747392638737,-450.0,0.00013698,2]
[361248181,1747392638747,-697.62,0.00013698,2]
[361248183,1747392638757,-570.78,0.00013698,2]
[361248185,1747392638767,-450.0,0.00013698,2]
[361248187,1747392638776,-3679.26,0.00013698,2]
[361248189,1747392638786,-565.07,0.00013698,2]
[361248191,1747392638797,-450.0,0.00013698,2]
[361248193,1747392638807,-450.0,0.00013698,2]
[361248195,1747392638816,-240.28137939,0.00013698,2]
[361248197,1747392638825,-450.0,0.00013698,2]
[361248199,1747392638834,-450.0,0.00013698,2]
[361248201,1747392638843,-748.9,0.00013698,2]
[361248203,1747392638852,-350.0,0.00013698,2]
[361248205,1747392638861,-450.0,0.00013698,2]
[361248207,1747392638871,-194.28957184,0.00013698,2]
[361248209,1747392638880,-450.0,0.00013698,2]
[361248211,1747392638890,-1548.4,0.00013698,2]
[361248213,1747392638900,-450.0,0.00013698,2]
[361248215,1747392638909,-450.0,0.00013698,2]
[361248217,1747392638922,-3280.86,0.00013698,2]
[361248220,1747392638934,-350.0,0.00013698,2]
[361248222,1747392638949,-937.71,0.00013698,2]
[361248224,1747392638962,-4604.18,0.00013698,2]
[361248227,1747392638975,-450.0,0.00013698,2]
[361248229,1747392638988,-450.0,0.00013698,2]
[361248231,1747392638999,-678.33,0.00013698,2]
[361248233,1747392639009,-501.33,0.00013698,2]
[361248236,1747392639021,-450.0,0.00013698,2]
[361248238,1747392639035,-1332.53,0.00013698,2]
[361248240,1747392639052,-450.0,0.00013698,2]
[361248243,1747392639063,-450.0,0.00013698,2]
[361248245,1747392639075,-450.0,0.00013698,2]
[361248247,1747392639087,-450.0,0.00013698,2]
[361248249,1747392639099,-450.0,0.00013698,2]
[361248252,1747392639110,-450.0,0.00013698,2]
[361248254,1747392639122,-450.0,0.00013698,2]
[361248256,1747392639135,-450.0,0.00013698,2]
[361248258,1747392639147,-1482.49,0.00013698,2]
[361248259,1747392639161,-450.0,0.00013698,2]
[361248260,1747392639173,-555.39,0.00013698,2]
[361248261,1747392639185,-450.0,0.00013698,2]
[361248262,1747392639196,-450.0,0.00013698,2]
[361248263,1747392639208,-2165.29,0.00013698,2]
[361248264,1747392639219,-667.66,0.00013698,2]
[361248265,1747392639230,-450.0,0.00013698,2]
[361248266,1747392639241,-450.0,0.00013698,2]
[361248267,1747392639252,-450.0,0.00013698,2]
[361248268,1747392639263,-934.03,0.00013698,2]
[361248269,1747392639274,-1574.34,0.00013698,2]
[361248270,1747392639285,-735.72,0.00013698,2]
[361248271,1747392639298,-456.77,0.00013698,2]
[361248272,1747392639308,-450.0,0.00013698,2]
[361248273,1747392639318,-653.02,0.00013698,2]
[361248274,1747392639328,-450.0,0.00013698,2]
[361248275,1747392639339,-450.0,0.00013698,2]
[361248276,1747392639351,-450.0,0.00013698,2]
[361248277,1747392639362,-1145.8,0.00013698,2]
[361248278,1747392639375,-450.0,0.00013698,2]
[361248280,1747392639387,-571.7,0.00013698,2]
[361248281,1747392639399,-350.0,0.00013698,2]
[361248284,1747392639411,-350.0,0.00013698,2]
[361248286,1747392639423,-450.0,0.00013698,2]
[361248288,1747392639436,-450.0,0.00013698,2]
[361248291,1747392639448,-350.0,0.00013698,2]
[361248293,1747392639459,-450.0,0.00013698,2]
[361248295,1747392639472,-450.0,0.00013698,2]
[361248297,1747392639483,-531.71,0.00013698,2]
[361248299,1747392639494,-985.06,0.00013698,2]
[361248302,1747392639503,-450.0,0.00013698,2]
[361248304,1747392639514,-1230.28,0.00013698,2]
[361248306,1747392639523,-493.46,0.00013698,2]
[361248308,1747392639534,-853.85,0.00013698,2]
[361248310,1747392639545,-479.24,0.00013698,2]
[361248312,1747392639556,-642.89,0.00013698,2]
[361248314,1747392639568,-549.45,0.00013698,2]
[361248317,1747392639580,-500.0,0.00013698,2]
[361248319,1747392639592,-681.634946,0.00013699,2]
[361248321,1747392639602,-500.0,0.00013699,2]
[361248323,1747392639612,-438.53786906,0.00013699,2]
[361248325,1747392639622,-351.4340298,0.000137,2]
[361248327,1747392639632,-500.0,0.00013725,2]
[361248329,1747392639642,-500.0,0.00013725,2]
[361248331,1747392639655,-500.0,0.00013725,2]
[361248334,1747392639666,-500.0,0.00013725,2]
[361248336,1747392639678,-500.0,0.00013725,2]
[361248338,1747392639688,-204.14512287,0.00013725,2]
[361248340,1747392639698,-500.0,0.00013725,2]
[361248342,1747392639709,-500.0,0.00013725,2]
[361248344,1747392639719,-500.0,0.00013725,2]
[361248346,1747392639730,-500.0,0.00013725,2]
[361248348,1747392639740,-634.87586206,0.00013725,2]
[361248350,1747392639751,-500.0,0.00013725,2]
[361248352,1747392639761,-366.34872801,0.00013725,2]
[361248355,1747392639772,-160.0,0.00013726,2]
[361248357,1747392639783,-12631.88158148,0.00013726,2]
[361248359,1747392639794,-422.39640784,0.00013726,2]
[361248361,1747392639805,-160.0,0.00013726,2]
[361248364,1747392639819,-212.26722696,0.00013726,2]
[361248366,1747392639829,-160.0,0.00013726,2]
[361248368,1747392639840,-160.0,0.00013726,2]
[361248370,1747392639850,-160.0,0.00013726,2]
[361248372,1747392639861,-160.0,0.00013726,2]
[361248374,1747392639872,-998.24360331,0.00013726,2]
[361248377,1747392639883,-160.0,0.00013726,2]
[361248379,1747392639893,-420.0,0.00013774,2]
[361248381,1747392639903,-409.71617304,0.00013783,2]
[361248383,1747392639914,-8740.28542514,0.00013833,3]
[361248385,1747392639924,-67561.3128461,0.00013833,2]
[361248387,1747392639935,-450.0,0.00013835,2]
[361248389,1747392639947,-450.0,0.00013835,2]
[361248391,1747392639958,-450.0,0.00013835,2]
[361248393,1747392639968,-450.0,0.00013835,2]
[361248395,1747392639979,-450.0,0.00013835,2]
[361248397,1747392639991,-450.0,0.00013835,2]
[361248400,1747392640002,-502.69,0.00013835,2]
[361248402,1747392640013,-450.0,0.00013835,2]
[361248404,1747392640024,-450.0,0.00013835,2]
[361248406,1747392640037,-529.66,0.00013835,2]
[361248408,1747392640048,-450.0,0.00013835,2]
[361248410,1747392640059,-450.0,0.00013835,2]
[361248412,1747392640070,-450.0,0.00013835,2]
[361248415,1747392640082,-450.0,0.00013835,2]
[361248417,1747392640092,-450.0,0.00013835,2]
[361248419,1747392640102,-153.82355699,0.00013835,2]
[361248421,1747392640116,-450.0,0.00013835,2]
[361248423,1747392640126,-538.09,0.00013835,2]
[361248425,1747392640137,-787.23,0.00013835,2]
[361248428,1747392640148,-450.0,0.00013835,2]
[361248430,1747392640159,-697.62,0.00013835,2]
[361248432,1747392640170,-570.78,0.00013835,2]
[361248434,1747392640180,-450.0,0.00013835,2]
[361248436,1747392640191,-3679.26,0.00013835,2]
[361248438,1747392640202,-565.07,0.00013835,2]
[361248440,1747392640212,-450.0,0.00013835,2]
[361248443,1747392640223,-450.0,0.00013835,2]
[361248445,1747392640234,-399.68705733,0.00013835,2]
[361248447,1747392640244,-748.9,0.00013835,2]
[361248449,1747392640255,-450.0,0.00013835,2]
[361248451,1747392640265,-450.0,0.00013835,2]
[361248453,1747392640275,-1548.4,0.00013835,2]
[361248455,1747392640286,-450.0,0.00013835,2]
[361248457,1747392640298,-450.0,0.00013835,2]
[361248459,1747392640309,-3280.86,0.00013835,2]
[361248461,1747392640320,-937.71,0.00013835,2]
[361248464,1747392640331,-4604.18,0.00013835,2]
[361248466,1747392640341,-450.0,0.00013835,2]
[361248468,1747392640352,-450.0,0.00013835,2]
[361248470,1747392640363,-678.33,0.00013835,2]
[361248472,1747392640373,-501.33,0.00013835,2]
[361248474,1747392640383,-450.0,0.00013835,2]
[361248476,1747392640393,-1332.53,0.00013835,2]
[361248478,1747392640404,-450.0,0.00013835,2]
[361248480,1747392640414,-450.0,0.00013835,2]
[361248482,1747392640425,-450.0,0.00013835,2]
[361248484,1747392640435,-357.20016576,0.00013835,2]
[361248487,1747392640446,-450.0,0.00013835,2]
[361248489,1747392640456,-450.0,0.00013835,2]
[361248491,1747392640467,-450.0,0.00013835,2]
[361248493,1747392640477,-450.0,0.00013835,2]
[361248495,1747392640488,-1482.49,0.00013835,2]
[361248497,1747392640498,-450.0,0.00013835,2]
[361248499,1747392640509,-555.39,0.00013835,2]
[361248501,1747392640520,-450.0,0.00013835,2]
[361248504,1747392640531,-450.0,0.00013835,2]
[361248506,1747392640542,-2165.29,0.00013835,2]
[361248508,1747392640554,-450.0,0.00013835,2]
[361248510,1747392640564,-667.66,0.00013835,2]
[361248512,1747392640575,-450.0,0.00013835,2]
[361248514,1747392640586,-450.0,0.00013835,2]
[361248516,1747392640596,-934.03,0.00013835,2]
[361248518,1747392640607,-1574.34,0.00013835,2]
[361248520,1747392640618,-735.72,0.00013835,2]
[361248522,1747392640629,-456.77,0.00013835,2]
[361248524,1747392640639,-450.0,0.00013835,2]
[361248526,1747392640649,-653.02,0.00013835,2]
[361248528,1747392640660,-450.0,0.00013835,2]
[361248531,1747392640670,-580.63328449,0.00013835,2]
[361248533,1747392640681,-450.0,0.00013835,2]
[361248535,1747392640692,-1145.8,0.00013835,2]
[361248537,1747392640702,-450.0,0.00013835,2]
[361248539,1747392640713,-571.7,0.00013835,2]
[361248541,1747392640724,-450.0,0.00013835,2]
[361248543,1747392640735,-450.0,0.00013835,2]
[361248545,1747392640745,-450.0,0.00013835,2]
[361248547,1747392640755,-450.0,0.00013835,2]
[361248550,1747392640766,-531.71,0.00013835,2]
[361248552,1747392640776,-985.06,0.00013835,2]
[361248554,1747392640786,-300.0,0.00013835,2]
[361248556,1747392640797,-1230.28,0.00013835,2]
[361248558,1747392640808,-493.46,0.00013835,2]
[361248560,1747392640818,-853.85,0.00013835,2]
[361248562,1747392640829,-479.24,0.00013835,2]
[361248564,1747392640840,-642.89,0.00013835,2]
[361248566,1747392640851,-549.45,0.00013835,2]
[361248569,1747392640861,-500.0,0.00013835,2]
[361248571,1747392640872,-500.0,0.00013835,2]
[361248573,1747392640881,-546.0,0.0001394,2]
[361248575,1747392640891,-707.0,0.0001394,2]
[361248577,1747392640900,-2236.0,0.0001394,2]
[361248579,1747392640910,-404.0,0.0001394,2]
[361248581,1747392640919,-409.71617304,0.00013969,2]
[361248583,1747392640930,-300.4043099,0.00013972,2]
[361248585,1747392640939,-450.0,0.00013972,2]
[361248587,1747392640949,-450.0,0.00013972,2]
[361248589,1747392640959,-450.0,0.00013972,2]
[361248591,1747392640969,-450.0,0.00013972,2]
[361248593,1747392640978,-450.0,0.00013972,2]
[361248595,1747392640988,-502.69,0.00013972,2]
[361248625,1747392641255,-450.0,0.00013972,2]
[361248627,1747392641266,-450.0,0.00013972,2]
[361248629,1747392641276,-529.66,0.00013972,2]
[361248631,1747392641286,-450.0,0.00013972,2]
[361248633,1747392641295,-450.0,0.00013972,2]
[361248635,1747392641306,-450.0,0.00013972,2]
[361248637,1747392641316,-450.0,0.00013972,2]
[361248639,1747392641325,-450.0,0.00013972,2]
[361248641,1747392641334,-450.0,0.00013972,2]
[361248643,1747392641344,-538.09,0.00013972,2]
[361248645,1747392641354,-787.23,0.00013972,2]
[361248647,1747392641363,-450.0,0.00013972,2]
[361248649,1747392641372,-697.62,0.00013972,2]
[361248651,1747392641382,-570.78,0.00013972,2]
[361248653,1747392641391,-450.0,0.00013972,2]
[361248655,1747392641400,-3679.26,0.00013972,2]
[361248657,1747392641409,-565.07,0.00013972,2]
[361248659,1747392641418,-450.0,0.00013972,2]
[361248661,1747392641428,-450.0,0.00013972,2]
[361248663,1747392641437,-748.9,0.00013972,2]
[361248665,1747392641446,-450.0,0.00013972,2]
[361248667,1747392641456,-450.0,0.00013972,2]
[361248669,1747392641465,-1548.4,0.00013972,2]
[361248671,1747392641474,-450.0,0.00013972,2]
[361248672,1747392641482,-450.0,0.00013972,2]
[361248674,1747392641492,-3280.86,0.00013972,2]
[361248676,1747392641502,-937.71,0.00013972,2]
[361248678,1747392641511,-4604.18,0.00013972,2]
[361248681,1747392641521,-450.0,0.00013972,2]
[361248683,1747392641532,-165.63347429,0.00013972,2]
[361248685,1747392641542,-678.33,0.00013972,2]
[361248686,1747392641552,-501.33,0.00013972,2]
[361248688,1747392641562,-450.0,0.00013972,2]
[361248691,1747392641571,-1332.53,0.00013972,2]
[361248692,1747392641581,-450.0,0.00013972,2]
[361248694,1747392641590,-450.0,0.00013972,2]
[361248696,1747392641599,-450.0,0.00013972,2]
[361248698,1747392641609,-450.0,0.00013972,2]
[361248700,1747392641619,-450.0,0.00013972,2]
[361248702,1747392641629,-450.0,0.00013972,2]
[361248705,1747392641639,-450.0,0.00013972,2]
[361248707,1747392641649,-1482.49,0.00013972,2]
[361248709,1747392641658,-450.0,0.00013972,2]
[361248711,1747392641667,-555.39,0.00013972,2]
[361248713,1747392641677,-450.0,0.00013972,2]
[361248715,1747392641686,-450.0,0.00013972,2]
[361248716,1747392641696,-2165.29,0.00013972,2]
[361248717,1747392641705,-450.0,0.00013972,2]
[361248718,1747392641715,-667.66,0.00013972,2]
[361248719,1747392641724,-450.0,0.00013972,2]
[361248720,1747392641733,-450.0,0.00013972,2]
[361248721,1747392641742,-934.03,0.00013972,2]
[361248722,1747392641751,-1574.34,0.00013972,2]
[361248723,1747392641760,-735.72,0.00013972,2]
[361248724,1747392641770,-456.77,0.00013972,2]
[361248725,1747392641779,-450.0,0.00013972,2]
[361248726,1747392641788,-653.02,0.00013972,2]
[361248728,1747392641798,-450.0,0.00013972,2]
[361248730,1747392641808,-450.0,0.00013972,2]
[361248732,1747392641817,-1145.8,0.00013972,2]
[361248734,1747392641826,-450.0,0.00013972,2]
[361248736,1747392641836,-571.7,0.00013972,2]
[361248738,1747392641845,-450.0,0.00013972,2]
[361248740,1747392641854,-450.0,0.00013972,2]
[361248742,1747392641864,-450.0,0.00013972,2]
[361248744,1747392641873,-450.0,0.00013972,2]
[361248746,1747392641882,-531.71,0.00013972,2]
[361248748,1747392641892,-985.06,0.00013972,2]
[361248750,1747392641901,-1230.28,0.00013972,2]
[361248752,1747392641911,-493.46,0.00013972,2]
[361248754,1747392641920,-853.85,0.00013972,2]
[361248756,1747392641930,-479.24,0.00013972,2]
[361248758,1747392641939,-642.89,0.00013972,2]
[361248760,1747392641949,-549.45,0.00013972,2]
[361248762,1747392641960,-302.36599241,0.00013988,2]
[361248764,1747392641970,-500.0,0.00014,2]
[361248766,1747392641979,-500.0,0.00014,2]
[361248768,1747392641989,-500.0,0.00014,2]
[361248770,1747392642000,-2000.0,0.00014,2]
[361248772,1747392642009,-2200.0,0.00014097,2]
[361248774,1747392642019,-561.58610123,0.00014109,2]
[361248776,1747392642030,-450.0,0.00014109,2]
[361248778,1747392642039,-450.0,0.00014109,2]
[361248780,1747392642049,-450.0,0.00014109,2]
[361248782,1747392642059,-450.0,0.00014109,2]
[361248784,1747392642068,-502.69,0.00014109,2]
[361248786,1747392642077,-450.0,0.00014109,2]
[361248788,1747392642086,-450.0,0.00014109,2]
[361248790,1747392642096,-529.66,0.00014109,2]
[361248792,1747392642105,-450.0,0.00014109,2]
[361248794,1747392642114,-263.25865233,0.00014109,2]
[361248796,1747392642123,-450.0,0.00014109,2]
[361248798,1747392642132,-384.5181614,0.00014109,2]
[361248800,1747392642142,-450.0,0.00014109,2]
[361248802,1747392642151,-450.0,0.00014109,2]
[361248804,1747392642161,-538.09,0.00014109,2]
[361248806,1747392642170,-787.23,0.00014109,2]
[361248808,1747392642180,-450.0,0.00014109,2]
[361248810,1747392642190,-697.62,0.00014109,2]
[361248812,1747392642200,-570.78,0.00014109,2]
[361248814,1747392642209,-450.0,0.00014109,2]
[361248816,1747392642219,-3679.26,0.00014109,2]
[361248818,1747392642228,-565.07,0.00014109,2]
[361248820,1747392642238,-450.0,0.00014109,2]
[361248822,1747392642248,-450.0,0.00014109,2]
[361248824,1747392642258,-748.9,0.00014109,2]
[361248826,1747392642267,-450.0,0.00014109,2]
[361248828,1747392642277,-1548.4,0.00014109,2]
[361248831,1747392642286,-450.0,0.00014109,2]
[361248833,1747392642296,-450.0,0.00014109,2]
[361248835,1747392642306,-450.0,0.00014109,2]
[361248837,1747392642316,-3280.86,0.00014109,2]
[361248839,1747392642325,-937.71,0.00014109,2]
[361248841,1747392642334,-4604.18,0.00014109,2]
[361248843,1747392642344,-451.03711394,0.00014109,2]
[361248845,1747392642353,-678.33,0.00014109,2]
[361248847,1747392642363,-501.33,0.00014109,2]
[361248849,1747392642372,-450.0,0.00014109,2]
[361248851,1747392642381,-1332.53,0.00014109,2]
[361248853,1747392642391,-450.0,0.00014109,2]
[361248855,1747392642400,-450.0,0.00014109,2]
[361248857,1747392642409,-450.0,0.00014109,2]
[361248859,1747392642419,-450.0,0.00014109,2]
[361248861,1747392642428,-450.0,0.00014109,2]
[361248863,1747392642437,-450.0,0.00014109,2]
[361248865,1747392642448,-450.0,0.00014109,2]
[361248867,1747392642458,-1482.49,0.00014109,2]
[361248869,1747392642467,-450.0,0.00014109,2]
[361248871,1747392642477,-555.39,0.00014109,2]
[361248873,1747392642487,-450.0,0.00014109,2]
[361248875,1747392642497,-450.0,0.00014109,2]
[361248877,1747392642506,-2165.29,0.00014109,2]
[361248879,1747392642517,-450.0,0.00014109,2]
[361248881,1747392642526,-667.66,0.00014109,2]
[361248883,1747392642536,-525.6746086,0.00014109,2]
[361248885,1747392642546,-450.0,0.00014109,2]
[361248887,1747392642556,-934.03,0.00014109,2]
[361248889,1747392642566,-1574.34,0.00014109,2]
[361248891,1747392642576,-735.72,0.00014109,2]
[361248893,1747392642586,-456.77,0.00014109,2]
[361248895,1747392642594,-450.0,0.00014109,2]
[361248897,1747392642604,-653.02,0.00014109,2]
[361248899,1747392642613,-450.0,0.00014109,2]
[361248901,1747392642622,-1145.8,0.00014109,2]
[361248903,1747392642631,-450.0,0.00014109,2]
[361248905,1747392642641,-450.0,0.00014109,2]
[361248907,1747392642651,-571.7,0.00014109,2]
[361248909,1747392642660,-450.0,0.00014109,2]
[361248911,1747392642669,-450.0,0.00014109,2]
[361248913,1747392642679,-450.0,0.00014109,2]
[361248915,1747392642688,-450.0,0.00014109,2]
[361248917,1747392642697,-531.71,0.00014109,2]
[361248919,1747392642706,-985.06,0.00014109,2]
[361248921,1747392642715,-1230.28,0.00014109,2]
[361248923,1747392642724,-493.46,0.00014109,2]
[361248925,1747392642733,-853.85,0.00014109,2]
[361248927,1747392642743,-479.24,0.00014109,2]